[Event "FIDE WTC-KO 202"]
[Site "Jerusalem"]
[Date "2022.11.23"]
[Round "2.1"]
[White "Mamedyarov, Shakhriyar"]
[Black "Santos Latasa, Jaime"]
[Result "1/2-1/2"]
[ECO "A34"]
[WhiteElo "2747"]
[BlackElo "2622"]
[Annotator "TA"]
[PlyCount "66"]
[EventDate "2022.11.20"]
[EventType "team-tourn"]
[EventCountry "ISR"]
[SourceTitle "playchess.com"]
[Source "ChessBase"]
[SourceQuality "1"]
[TimeControl "2700+10"]

{[%evp 12,66,24,0,0,0,0,0,0,0,0,0,56,32,29,0,0,-16,21,-25,0,-28,56,46,58,64,67,34,51,58,57,54,75,0,0,0,22,0,0,0,0,0,0,0,0,0,0,-41,0,0,0,0,0,0,0,0,0]} 1. c4 {[%emt 0:00:01]} c5 {[%emt 0:00:32]} 2. Nf3 {[%emt 0:00:10]} Nf6 {[%emt 0:00:05]} 3. Nc3 {[%emt 0:00:05]} Nc6 {[%emt 0:00:02]} 4. g3 {[%emt 0:00:05]} d5 {[%emt 0:00:45]} 5. cxd5 {[%emt 0:00:06]} Nxd5 {[%emt 0:00:01]} 6. Bg2 {[%emt 0:00:01]} g6 {[%emt 0:00:03]} 7. Qb3 {[%emt 0:00:49]} e6 {[%emt 0:01:56] A34: Symmetrical English: 2 Nc3, lines with ...d5.} 8. Ne4 {[%emt 0:00:08] [#]} f5 $146 {[%emt 0:01:38]} ({Predecessor:} 8... b6 9. d4 cxd4 10. O-O Bb7 11. Rd1 Bg7 12. Bg5 f6 13. Bf4 e5 14. Nxd4 Nxd4 15. Rxd4 {1-0 (48) Giri,A (2764)-Nepomniachtchi,I (2784) chess24.com INT 2020}) 9. Nc3 {[%emt 0:00:47]} Bg7 {[%emt 0:01:02]} 10. O-O {[%emt 0:01:41]} O-O {[%emt 0:01:39]} 11. d3 {[%emt 0:00:36]} Kh8 {[%emt 0:03:00]} (11... Nxc3 $11 12. bxc3 b6) 12. Bg5 {[%emt 0:04:37]} Qd7 {[%emt 0:01:27]} 13. Rad1 {[%emt 0:03:29]} (13. Nxd5 {simplifies} exd5 14. Bf4 b6 15. e3) 13... b6 {[%emt 0:01:40]} 14. e4 {[%emt 0:02:15]} Nc7 {[%emt 0:04:37]} 15. Rfe1 {[%emt 0:05:13]} (15. e5 {should be considered.}) 15... Bb7 {[%emt 0:02:25]} (15... e5 $5 {[%cal Rf5f4]} 16. exf5 gxf5 $15) 16. Qa4 {[%emt 0:03:45][%cal Od3d4]} (16. e5 $5 {[%cal Rd3d4]}) 16... Rae8 {[%emt 0:05:25] Inhibits d4.} (16... b5 $11 17. Nxb5 fxe4) 17. d4 $1 $14 {[%emt 0:04:40]} cxd4 {[%emt 0:02:28] [#] Strongly threatening ...e5.} 18. e5 {[%emt 0:00:09][%cal Rf3d4]} d3 {[%emt 0:02:59]} 19. Re3 {[%emt 0:06:02]} Nd5 {[%emt 0:03:50]} 20. Rdxd3 {[%emt 0:03:14]} Nxc3 {[%emt 0:00:40]} 21. bxc3 {[%emt 0:00:48]} ({Much weaker is} 21. Rxd7 Nxa4 22. Rxb7 Nc5 $11) 21... Qc7 {[%emt 0:01:55]} 22. Qh4 {[%emt 0:01:04] White is more active.} ({Better is} 22. Re1 $16) 22... Kg8 {[%emt 0:00:49]} 23. Bf6 {[%emt 0:01:31]} h6 {[%emt 0:01:00]} 24. Qc4 {[%emt 0:01:12] [#] And now Nd4 would win.} Rf7 {[%emt 0:00:37]} ({Don't play} 24... Bxf6 25. exf6 Qf7 26. Qh4 Qxf6 27. Qxh6 $16) 25. Bxg7 {[%emt 0:01:36]} Kxg7 {[%emt 0:00:20]} 26. Rd6 {[%emt 0:00:37]} Na5 {[%emt 0:01:10]} 27. Qxc7 {[%emt 0:00:53]} Rxc7 {[%emt 0:00:06]} 28. Nd4 {[%emt 0:00:09]} Rce7 {[%emt 0:01:27] White must now prevent ...Nc4.} 29. Re2 {[%emt 0:03:30]} Bxg2 {[%emt 0:00:19]} 30. Kxg2 {[%emt 0:00:01] The position is equal.} Nb7 {[%emt 0:01:22]} 31. Rc6 {[%emt 0:00:01]} Na5 {[%emt 0:03:27]} 32. Rd6 {[%emt 0:00:01]} Nb7 {[%emt 0:00:47]} 33. Rc6 {[%emt 0:00:01]} Na5 {[%emt 0:00:21] Weighted Error Value: White=0.11 (very precise) /Black=0.16 (very precise)} 1/2-1/2

[Event "FIDE WTC-KO 202"]
[Site "Jerusalem"]
[Date "2022.11.23"]
[Round "2.1"]
[White "Vidit, Santosh Gujrathi"]
[Black "Vachier-Lagrave, Maxime"]
[Result "0-1"]
[ECO "A48"]
[WhiteElo "2662"]
[BlackElo "2775"]
[Annotator "TA"]
[PlyCount "140"]
[EventDate "2022.11.20"]
[EventType "team-tourn"]
[EventCountry "ISR"]
[SourceTitle "playchess.com"]
[Source "ChessBase"]
[SourceQuality "1"]
[TimeControl "2700+10"]

{[%evp 9,140,9,18,8,9,-14,0,2,2,0,4,4,7,8,14,0,10,-9,35,33,24,31,35,29,29,18,37,0,0,0,0,0,0,0,0,-3,0,-124,-126,-122,-120,-111,-110,-122,-121,-145,-149,-138,-143,-158,-166,-164,-143,-150,-148,-148,-150,-139,-147,-170,-176,-163,-161,-170,-171,-173,-169,-154,-137,-135,-129,-127,-126,-127,-127,-133,-128,-135,-124,-153,-138,-145,-133,-139,-114,-172,-180,-189,-182,-219,-206,-206,-192,-385,-385,-385,-369,-636,-620,-506,-444,-433,-433,-650,-607,-513,-497,-683,-677,-700,-700,-700,-366,-700,-700,-700,-700,-700,-700,-700,-700,-1250,-755,-1083,-1306,-1161,-1116,-955,-768,-29972,-29976,-29956,-6412]} 1. d4 {[%emt 0:00:24]} Nf6 {[%emt 0:00:01]} 2. Nf3 {[%emt 0:00:03]} g6 {[%emt 0:00:08]} 3. b3 {[%emt 0:00:04]} Bg7 {[%emt 0:00:17]} 4. Bb2 {[%emt 0:00:02]} O-O {[%emt 0:02:38]} 5. e3 {[%emt 0:00:04]} b6 {[%emt 0:00:52]} 6. c4 {[%emt 0:00:06] A48: 1 d4 Nf6 2 Nf3 g6: Torre, London and Colle Systems.} Bb7 {[%emt 0:00:04]} 7. Nc3 {[%emt 0:01:57]} d5 {[%emt 0:01:44]} 8. Rc1 {[%emt 0:00:48] The position is equal.} e6 {[%emt 0:01:44]} 9. cxd5 {[%emt 0:00:56]} exd5 {[%emt 0:00:29]} 10. Bd3 {[%emt 0:00:21] [#]} Nbd7 $146 {[%emt 0:00:37]} ({Predecessor:} 10... a6 11. Ne5 Nbd7 12. f4 c5 13. O-O cxd4 14. exd4 b5 15. Qe2 Re8 16. Nd1 Ne4 {½-½ (25) Oparin,G (2654)-Yu,Y (2763) Douglas 2019}) 11. O-O {[%emt 0:03:01]} a6 {[%emt 0:02:30]} 12. b4 {[%emt 0:02:37]} Re8 {[%emt 0:00:32]} 13. a4 {[%emt 0:02:12]} c5 {[%emt 0:04:06]} 14. bxc5 {[%emt 0:03:44]} bxc5 {[%emt 0:01:49]} 15. dxc5 {[%emt 0:00:06]} Nxc5 {[%emt 0:00:03]} 16. Ne2 {[%emt 0:00:11]} Rc8 {[%emt 0:01:11]} 17. Bd4 {[%emt 0:00:39]} (17. Nf4 {keeps more tension.} Nfe4 18. Bxg7 Kxg7 19. Bc2) 17... Qa5 {[%emt 0:03:09]} 18. Bxc5 {[%emt 0:04:39]} (18. Nf4 {looks sharper.} Nfe4 19. Bc2 Bxd4 20. Qxd4 Qc3 21. h4) 18... Rxc5 {[%emt 0:00:04]} 19. Rxc5 {[%emt 0:00:15]} Qxc5 {[%emt 0:00:02]} 20. Qb3 {[%emt 0:00:03]} Re7 {[%emt 0:00:14]} 21. Rc1 {[%emt 0:00:43]} Qd6 {[%emt 0:01:11]} 22. a5 {[%emt 0:03:19]} Rc7 {[%emt 0:00:25]} 23. Qb6 {[%emt 0:04:15]} (23. Rxc7 $11 Qxc7 24. Nf4) 23... Qxb6 $17 {[%emt 0:01:38]} 24. axb6 {[%emt 0:00:01]} Rxc1+ {[%emt 0:00:01]} 25. Nxc1 {[%emt 0:00:01] [#] And now Nb3 would win.} Nd7 {[%emt 0:00:02]} 26. Nb3 {[%emt 0:03:17] aiming for Na5.} Bc3 {[%emt 0:00:05] Inhibits Na5.} (26... Nxb6 $6 27. Nc5 Ba8 28. Bxa6 $11) 27. Nfd4 {[%emt 0:05:23]} Kf8 {[%emt 0:00:41]} ({Don't play} 27... Nxb6 $6 28. Nc5 Ba8 29. Bxa6 $11) 28. Kf1 {[%emt 0:01:27]} Ke7 {[%emt 0:01:16]} ({Much worse is} 28... Nxb6 $6 29. Nc5 Ba8 30. Bxa6 $11) 29. Ne2 {[%emt 0:00:22]} Bb4 {[%emt 0:00:05]} 30. Nec1 {[%emt 0:00:02]} Nxb6 {[%emt 0:00:03]} 31. Na2 {[%emt 0:00:01]} Bd6 {[%emt 0:00:17]} 32. Na5 {[%emt 0:00:04]} Bc8 {[%emt 0:00:02]} 33. Ke2 {[%emt 0:00:59]} Kd7 {[%emt 0:00:28]} 34. Kd2 {[%emt 0:00:12]} Kc7 {[%emt 0:00:15]} 35. g3 {[%emt 0:00:14]} Na4 {[%emt 0:02:00]} 36. Kc2 {[%emt 0:00:43]} Nc5 {[%emt 0:02:44]} 37. Nb3 {[%emt 0:00:02]} Ne4 {[%emt 0:03:00]} 38. f3 {[%emt 0:02:57]} Nf6 {[%emt 0:00:11]} 39. Nc3 {[%emt 0:00:12]} h5 {[%emt 0:00:24] Prevents g4.} 40. Na4 {[%emt 0:01:53]} Nd7 {[%emt 0:01:48]} 41. Nc3 {[%emt 0:00:37]} Nb6 {[%emt 0:02:51]} 42. e4 {[%emt 0:00:22]} dxe4 {[%emt 0:00:24]} 43. Nxe4 {[%emt 0:00:11]} Be7 {[%emt 0:00:05]} 44. f4 {[%emt 0:00:12]} Nd5 {[%emt 0:00:52]} 45. Kd2 {[%emt 0:00:51]} Bb4+ {[%emt 0:01:49]} 46. Kc1 {[%emt 0:00:02]} a5 {[%emt 0:01:27]} 47. Ng5 {[%emt 0:00:20]} (47. Bc4 $17 Bb7 48. Nec5 Bxc5 49. Nxc5) 47... f6 $19 {[%emt 0:00:20][%cal Bf7f6,Bf6g5,Bg5h4][%mdl 32]} 48. Nf3 {[%emt 0:00:37]} Ne7 {[%emt 0:00:15]} 49. Nh4 {[%emt 0:00:59]} g5 {[%emt 0:00:06]} 50. fxg5 {[%emt 0:00:01]} fxg5 {[%emt 0:00:01]} 51. Ng6 {[%emt 0:00:22]} (51. Nf3) 51... Nxg6 {[%emt 0:01:04]} 52. Bxg6 {[%emt 0:00:01][%mdl 4096] Endgame KBB-KBN} h4 {[%emt 0:00:01]} 53. gxh4 $2 {[%emt 0:00:06]} (53. Bf7) 53... gxh4 {[%emt 0:00:02]} 54. Nd4 {[%emt 0:00:02]} Be7 {[%emt 0:00:25]} 55. Bf5 {[%emt 0:00:16]} Bb7 {[%emt 0:00:44]} 56. h3 {[%emt 0:00:24]} (56. Nc2 $142) 56... Bf6 {[%emt 0:00:10]} 57. Nb5+ {[%emt 0:00:23]} Kb6 {[%emt 0:00:04]} 58. Nd6 {[%emt 0:00:02]} Bd5 {[%emt 0:00:27] [#] ...Kc6 is the strong threat.} 59. Bc2 {[%emt 0:00:32]} Kc6 {[%emt 0:00:38]} 60. Ne4 {[%emt 0:00:07]} Be7 {[%emt 0:00:04]} 61. Kd2 $2 {[%emt 0:00:15]} (61. Kb2) 61... Be6 {[%emt 0:00:09]} 62. Ba4+ {[%emt 0:00:08]} Kb6 {[%emt 0:00:07]} 63. Nf2 {[%emt 0:00:08]} Kc5 {[%emt 0:00:22] Threatens to win with ...Kb4.} 64. Kc3 {[%emt 0:00:22]} Bf6+ {[%emt 0:00:04]} 65. Kc2 {[%emt 0:00:04]} Bd4 {[%emt 0:00:38]} 66. Nd3+ {[%emt 0:00:04]} Kd6 {[%emt 0:00:03]} 67. Nf4 {[%emt 0:00:09]} Bf5+ {[%emt 0:00:02]} 68. Kd2 {[%emt 0:00:08]} Be5 {[%emt 0:00:07] A strong pair of Bishops.} 69. Ke3 {[%emt 0:00:05]} Bxf4+ {[%emt 0:00:12]} 70. Kxf4 {[%emt 0:00:02]} Bxh3 {[%emt 0:00:01] Weighted Error Value: White=0.25 (precise) /Black=0.12 (very precise)} 0-1

[Event "FIDE WTC-KO 202"]
[Site "Jerusalem"]
[Date "2022.11.23"]
[Round "2.1"]
[White "Gharamian, Tigran"]
[Black "Sasikiran, Krishnan"]
[Result "1/2-1/2"]
[ECO "C48"]
[WhiteElo "2637"]
[BlackElo "2577"]
[Annotator "TA"]
[PlyCount "64"]
[EventDate "2022.11.20"]
[EventType "team-tourn"]
[EventCountry "ISR"]
[SourceTitle "playchess.com"]
[Source "ChessBase"]
[SourceQuality "1"]
[TimeControl "2700+10"]

{[%evp 10,64,30,0,6,4,0,-1,14,13,12,10,18,8,53,51,53,54,53,52,80,21,37,0,6,17,76,7,14,19,39,52,51,54,66,0,0,0,0,0,19,15,16,11,13,0,0,0,0,0,0,0,0,0,0,-1,-1]} 1. e4 {[%emt 0:00:03]} e5 {[%emt 0:00:02]} 2. Nf3 {[%emt 0:00:02]} Nc6 {[%emt 0:00:02]} 3. Bb5 {[%emt 0:00:02]} Nf6 {[%emt 0:00:01][%cal Bg8f6,Bf6d7,Bd7c5][%mdl 32]} 4. d3 {[%emt 0:00:02]} Bc5 {[%emt 0:00:02]} 5. Bxc6 {[%emt 0:00:08]} dxc6 {[%emt 0:00:02]} 6. Nc3 {[%emt 0:00:09]} Nd7 {[%emt 0:02:22] C48: Four Knights: 4 Bb5, replies other than 4...Bb4.} 7. O-O {[%emt 0:01:22]} O-O {[%emt 0:00:45]} 8. Be3 {[%emt 0:01:06]} Bd6 {[%emt 0:02:32]} 9. Nd2 {[%emt 0:00:32]} Nc5 {[%emt 0:02:04]} 10. Nc4 {[%emt 0:03:05]} Ne6 {[%emt 0:01:33]} 11. Ne2 {[%emt 0:00:39] [#]} f5 $146 {[%emt 0:05:09]} ({Predecessor:} 11... Qf6 12. Qd2 Rd8 13. f4 exf4 14. Nxf4 Bxf4 15. Bxf4 Nxf4 16. Rxf4 Qd4+ 17. Qf2 Be6 18. Qxd4 Rxd4 {0-1 (60) Rasik,V (2458)-Blahynka,M (2426) Czech Republic 2018}) 12. exf5 {[%emt 0:02:13]} Rxf5 {[%emt 0:00:18]} 13. Ng3 {[%emt 0:00:20]} Rf7 {[%emt 0:00:39]} 14. Qd2 {[%emt 0:05:31]} (14. Ne4 {with more complications.} Nf4 15. Re1 Be6 16. Qd2) 14... b5 {[%emt 0:08:27] [#]} 15. Nxd6 {[%emt 0:11:28]} (15. Na5 $1 $16) 15... cxd6 $11 {[%emt 0:00:15][%cal Bc7d6,Bd6d5][%mdl 32]} 16. f4 {[%emt 0:01:04]} exf4 {[%emt 0:06:08]} 17. Bxf4 {[%emt 0:00:06]} c5 {[%emt 0:00:43]} (17... Rxf4 $11 {remains equal.} 18. Rxf4 Nxf4 19. Qxf4 Be6) 18. Ne4 {[%emt 0:05:02]} ({Better is} 18. Be3 $16) 18... d5 {[%emt 0:00:52]} 19. Bg5 {[%emt 0:02:26]} Qd7 {[%emt 0:02:50]} (19... Rxf1+ {feels hotter.} 20. Rxf1 Nxg5 21. Nxg5 h6) 20. Rxf7 {[%emt 0:03:27]} Qxf7 {[%emt 0:00:07]} 21. Nd6 {[%emt 0:00:48]} Qg6 {[%emt 0:07:03]} 22. Bh4 {[%emt 0:00:26] White is much more active.} (22. Be7 $14) 22... Nd4 {[%emt 0:01:18] [#] Hoping for ...Nf3+. The position is equal.} 23. Bg3 {[%emt 0:00:39]} Bg4 {[%emt 0:00:36] Strongly threatening ...Ne2+.} 24. Re1 {[%emt 0:02:43] Inhibits Ne2+.} Rf8 {[%emt 0:01:19]} 25. c3 {[%emt 0:00:45]} Nf5 {[%emt 0:00:43] And now ...Nxg3 would win.} 26. Nxf5 {[%emt 0:00:22]} Bxf5 {[%emt 0:00:12]} 27. d4 {[%emt 0:00:01]} c4 {[%emt 0:00:46]} 28. Rf1 {[%emt 0:00:25]} h6 {[%emt 0:02:13]} 29. Be5 {[%emt 0:00:23]} Be4 {[%emt 0:00:31]} 30. Rxf8+ {[%emt 0:00:03]} Kxf8 {[%emt 0:00:01]} 31. Qf2+ {[%emt 0:00:21]} Kg8 {[%emt 0:00:06]} 32. Qg3 {[%emt 0:00:20]} Qxg3 {[%emt 0:00:23] Weighted Error Value: White=0.15 (very precise) /Black=0.12 (very precise)} 1/2-1/2

[Event "FIDE WTC-KO 202"]
[Site "Jerusalem"]
[Date "2022.11.23"]
[Round "2.1"]
[White "Wojtaszek, Radoslaw"]
[Black "Lu, Shanglei"]
[Result "1/2-1/2"]
[ECO "E04"]
[WhiteElo "2636"]
[BlackElo "2627"]
[Annotator "TA"]
[PlyCount "82"]
[EventDate "2022.11.20"]
[EventType "team-tourn"]
[EventCountry "ISR"]
[SourceTitle "playchess.com"]
[Source "ChessBase"]
[SourceQuality "1"]
[TimeControl "2700+10"]

{[%evp 15,82,12,22,26,22,13,25,24,14,0,3,9,11,14,12,12,21,12,3,12,12,7,21,11,8,0,0,0,0,0,0,0,0,0,0,0,3,10,33,33,33,33,33,33,32,24,37,52,45,32,39,32,47,46,45,47,68,8,8,8,8,12,8,0,0,0,0,0,0]} 1. d4 {[%emt 0:00:03]} Nf6 {[%emt 0:00:03]} 2. c4 {[%emt 0:00:02]} e6 {[%emt 0:00:03]} 3. Nf3 {[%emt 0:00:02]} d5 {[%emt 0:00:02]} 4. g3 {[%emt 0:00:02]} dxc4 {[%emt 0:00:03]} 5. Bg2 {[%emt 0:00:01]} c5 {[%emt 0:00:02]} 6. O-O {[%emt 0:00:03]} Nc6 {[%emt 0:00:02]} 7. Qa4 {[%emt 0:00:08]} Bd7 {[%emt 0:00:11]} 8. Qxc4 {[%emt 0:00:03]} b5 $1 {[%emt 0:00:02] 8...b5 is better than 8...cxd4.} 9. Qc3 {[%emt 0:00:05] E04: Open Catalan: 5 Nf3.} b4 {[%emt 0:00:05]} 10. Qd3 {[%emt 0:00:05]} Rc8 {[%emt 0:00:03]} 11. dxc5 {[%emt 0:00:13] White has an edge.} Bxc5 {[%emt 0:00:03]} 12. Nbd2 {[%emt 0:00:04]} O-O {[%emt 0:00:03]} 13. Nb3 {[%emt 0:00:08] Against e5} Bb6 {[%emt 0:00:02]} 14. Be3 {[%emt 0:00:11]} e5 {[%emt 0:00:02] [#] Strongly threatening ...e4.} 15. Nfd2 {[%emt 0:00:11] [#] Against e4} Be6 $146 {[%emt 0:00:02]} ({Predecessor:} 15... Bg4 16. Qxd8 Rfxd8 17. Bxb6 axb6 18. Rfc1 Na5 19. Rxc8 Rxc8 20. Rc1 Rxc1+ 21. Nxc1 Nd7 {½-½ (65) Roiz,M (2598)-Yilmaz,M (2607) Chess.com INT 2020}) 16. Rac1 {[%emt 0:00:27]} Qxd3 {[%emt 0:02:43]} 17. exd3 {[%emt 0:00:02] aiming for Bxb6.} Ne7 {[%emt 0:00:09]} 18. Bc5 {[%emt 0:00:08]} Bxc5 {[%emt 0:01:06]} 19. Nxc5 {[%emt 0:00:05]} Bxa2 {[%emt 0:08:43]} 20. Bh3 {[%emt 0:00:55]} Rc6 {[%emt 0:03:37]} 21. Rfe1 {[%emt 0:00:06]} Bd5 {[%emt 0:02:05]} 22. d4 {[%emt 0:00:05]} e4 {[%emt 0:01:18]} 23. f3 {[%emt 0:00:02][%cal Rf3e4]} (23. Ndxe4 $2 {too greedy.} Nxe4 24. Bg2 f5 $19) 23... e3 {[%emt 0:00:03]} 24. Rxe3 {[%emt 0:00:02]} Rc7 {[%emt 0:00:13]} 25. Bd7 {[%emt 0:03:02]} Rd8 {[%emt 0:03:56]} 26. Rxe7 {[%emt 0:05:23][%cal Oc1e1] Threatens to win with Rce1!} Rdxd7 {[%emt 0:00:18]} 27. Nxd7 {[%emt 0:04:36] Pair of Knights!} Rxc1+ {[%emt 0:00:07]} 28. Kf2 {[%emt 0:00:02]} Rc2 {[%emt 0:05:47]} 29. Ke3 {[%emt 0:00:02]} Rxb2 {[%emt 0:00:06]} 30. Nxf6+ {[%emt 0:00:04]} gxf6 {[%emt 0:00:04]} 31. Rxa7 $14 {[%emt 0:04:11][%mdl 4096] Endgame KRB-KRN} Rc2 {[%emt 0:00:04]} 32. Rd7 {[%emt 0:01:45]} Rc3+ {[%emt 0:07:33]} 33. Ke2 {[%emt 0:00:41]} Bc6 {[%emt 0:01:01]} 34. Rd8+ {[%emt 0:00:47]} Kg7 {[%emt 0:00:01]} 35. Rb8 {[%emt 0:00:02] Inhibits Bb5+.} b3 {[%emt 0:00:03]} 36. Rxb3 {[%emt 0:00:28]} (36. h4 $14) 36... Bxf3+ $1 $11 {[%emt 0:00:03][%mdl 64] [#] The position is equal.} 37. Kf2 {[%emt 0:00:15]} Rc2 {[%emt 0:00:03] ...Bd5 is the strong threat.} 38. Ke3 {[%emt 0:00:36]} Bd5 {[%emt 0:01:31]} 39. Rb5 {[%emt 0:00:28]} Rc3+ {[%emt 0:00:02]} 40. Ke2 {[%emt 0:02:24]} Be6 {[%emt 0:00:28]} 41. Rb4 {[%emt 0:03:53]} Ra3 {[%emt 0:00:48] Weighted Error Value: White=0.05 (flawless) /Black=0.02 (flawless)} 1/2-1/2

[Event "FIDE WTC-KO 202"]
[Site "Jerusalem"]
[Date "2022.11.23"]
[Round "2.1"]
[White "Moussard, Jules"]
[Black "Nihal, Sarin"]
[Result "1/2-1/2"]
[ECO "C88"]
[WhiteElo "2634"]
[BlackElo "2616"]
[Annotator "TA"]
[PlyCount "100"]
[EventDate "2022.11.20"]
[EventType "team-tourn"]
[EventCountry "ISR"]
[SourceTitle "playchess.com"]
[Source "ChessBase"]
[SourceQuality "1"]
[TimeControl "2700+10"]

{[%evp 16,100,17,12,26,27,37,7,25,0,0,-14,0,7,6,0,0,8,45,27,25,39,39,28,24,48,53,38,52,66,54,19,25,25,26,29,25,1,36,37,41,23,26,29,64,64,81,64,64,64,64,64,64,64,64,12,12,12,12,12,12,12,12,11,12,12,12,12,12,12,17,17,17,0,30,30,30,0,30,30,30,30,30,0,0,0,30]} 1. e4 {[%emt 0:00:02]} e5 {[%emt 0:00:07]} 2. Nf3 {[%emt 0:00:02]} Nc6 {[%emt 0:00:02]} 3. Bb5 {[%emt 0:00:02]} a6 {[%emt 0:00:02]} 4. Ba4 {[%emt 0:00:02]} Nf6 {[%emt 0:00:03]} 5. O-O {[%emt 0:00:03]} Be7 {[%emt 0:00:02]} 6. Re1 {[%emt 0:00:02]} b5 {[%emt 0:00:01]} 7. Bb3 {[%emt 0:00:02]} O-O {[%emt 0:00:02]} 8. h3 {[%emt 0:00:03]} Bb7 {[%emt 0:00:47]} 9. d3 {[%emt 0:00:03]} d5 {[%emt 0:02:45] C88: Closed Ruy Lopez: Anti-Marshall Systems.} 10. exd5 {[%emt 0:00:31]} Nxd5 {[%emt 0:00:02]} 11. Nbd2 {[%emt 0:00:07]} Qd7 {[%emt 0:01:00]} (11... Nf4 {is more complex.} 12. Ne4 Na5 13. Bxf4 exf4 14. d4 Nxb3 15. axb3 f5) 12. a4 {[%emt 0:00:06]} f6 {[%emt 0:02:51]} 13. c3 $1 {[%emt 0:01:21][%mdl 4] now scores much better than the old 13.Ne4.} Kh8 {[%emt 0:00:10] [#]} 14. axb5 $146 {[%emt 0:01:30]} ({Predecessor:} 14. Ne4 Na5 15. Bc2 c5 16. axb5 axb5 17. h4 Nc6 18. Rxa8 Bxa8 19. h5 Qg4 20. Ng3 {1-0 (40) Grischuk,A (2745)-Artemiev,V (2701) Chess.com INT 2022}) 14... axb5 {[%emt 0:00:02]} 15. Rxa8 {[%emt 0:00:02]} Bxa8 {[%emt 0:07:10]} 16. Ne4 {[%emt 0:02:56]} b4 {[%emt 0:07:18]} (16... Na5 $5 {[%cal Ra5b3]}) 17. Bd2 {[%emt 0:06:33]} bxc3 {[%emt 0:00:06]} 18. bxc3 {[%emt 0:00:01]} Nd8 {[%emt 0:03:47]} 19. d4 {[%emt 0:08:54]} exd4 {[%emt 0:00:01]} 20. Nxd4 {[%emt 0:04:50]} Nc6 {[%emt 0:01:58]} 21. Nf3 {[%emt 0:02:18]} (21. Qh5 {feels hotter.} Ne5 22. Ng5 fxg5 23. Rxe5 Bf6 24. Re2) 21... Ne5 {[%emt 0:02:15]} 22. Nxe5 {[%emt 0:02:22]} fxe5 {[%emt 0:00:04]} 23. Qh5 {[%emt 0:02:17]} Nf6 {[%emt 0:03:06]} 24. Nxf6 {[%emt 0:00:02]} (24. Qxe5 $2 {too greedy.} Bxe4 25. Rxe4 Nxe4 26. Qxe4 Qxd2 $19) 24... Bxf6 {[%emt 0:00:02] [#]} 25. Bc2 $1 {[%emt 0:03:14][%csl Gc2][%cal Rh5h7] Really sharp!} e4 {[%emt 0:00:06]} 26. Qc5 {[%emt 0:00:34][%cal Rc5f8]} Rc8 {[%emt 0:07:05]} 27. Be3 {[%emt 0:01:33]} Qc6 {[%emt 0:00:58]} 28. Qxc6 {[%emt 0:01:24]} Bxc6 {[%emt 0:00:01]} 29. Bd4 {[%emt 0:00:03]} Bxd4 {[%emt 0:01:25]} 30. cxd4 {[%emt 0:00:01]} h6 {[%emt 0:00:34]} 31. Bxe4 {[%emt 0:00:20] White is more active.} Bxe4 {[%emt 0:00:01]} 32. Rxe4 $16 {[%emt 0:00:01][%mdl 4096] Endgame KR-KR} c5 {[%emt 0:00:14]} 33. dxc5 {[%emt 0:00:31]} Rxc5 {[%emt 0:00:02]} 34. Kh2 {[%emt 0:00:19]} Kg8 {[%emt 0:00:04]} 35. f4 {[%emt 0:00:20]} ({White should try} 35. h4 $14) 35... Kf7 $11 {[%emt 0:00:26]} 36. Kg3 {[%emt 0:00:05]} g5 {[%emt 0:00:08]} 37. Kf3 {[%emt 0:01:29]} gxf4 {[%emt 0:00:07]} 38. Rxf4+ {[%emt 0:00:02]} Kg6 {[%emt 0:00:02]} 39. Re4 {[%emt 0:00:02]} Rf5+ {[%emt 0:00:13]} 40. Kg3 {[%emt 0:00:12]} Ra5 {[%emt 0:00:03]} 41. Re6+ {[%emt 0:00:10]} Kg7 {[%emt 0:00:02]} 42. Kf4 {[%emt 0:00:05]} Ra3 {[%emt 0:00:50]} 43. Re3 {[%emt 0:00:57]} Ra5 {[%emt 0:00:27]} 44. g4 {[%emt 0:00:05]} Kf6 {[%emt 0:00:14]} 45. h4 {[%emt 0:00:03]} Ra4+ {[%emt 0:00:10]} 46. Re4 {[%emt 0:00:02]} Ra1 {[%emt 0:00:16]} 47. Rc4 {[%emt 0:00:15]} Rf1+ {[%emt 0:00:03]} 48. Ke4 {[%emt 0:00:04]} Re1+ {[%emt 0:00:27]} 49. Kd5 {[%emt 0:00:14]} Rd1+ {[%emt 0:00:15]} 50. Ke4 {[%emt 0:00:29]} Re1+ {[%emt 0:00:02] Weighted Error Value: White=0.10 (very precise) /Black=0.07 (flawless)} 1/2-1/2